fUSD/lending_fUSD_20251030
["ID","MTS","AMOUNT","RATE_DAILY","PERIOD"]
[392703350,1761834729432,-160.0,0.00041999,120]
[392703351,1761834729484,-151.0,0.00041999,120]
[392703352,1761834729537,-151.0,0.00041999,120]
[392703353,1761834729590,-151.0,0.00041999,120]
[392703354,1761834729642,-646.65982734,0.00041999,120]
[392703355,1761834729699,-151.0,0.00041999,120]
[392703356,1761834729752,-151.0,0.00041999,120]
[392703357,1761834729806,-151.0,0.00041999,120]
[392703358,1761834729859,-670.58624095,0.00041999,120]
[392703359,1761834729913,-151.0,0.00041999,120]
[392703360,1761834729969,-151.0,0.00041999,120]
[392703361,1761834730021,-151.0,0.00041999,120]
[392703362,1761834730074,-414.0,0.00041999,120]
[392703363,1761834730130,-151.0,0.00041999,120]
[392703364,1761834730185,-151.0,0.00041999,120]
[392703365,1761834730243,-429.318,0.00041999,120]
[392703366,1761834730298,-151.0,0.00041999,120]
[392703367,1761834730350,-500.0,0.00041999,120]
[392703368,1761834730399,-151.0,0.00041999,120]
[392703369,1761834730448,-445.202766,0.00041999,120]
[392703370,1761834730498,-250.0,0.00041999,120]
[392703371,1761834730550,-151.0,0.00041999,120]
[392703372,1761834730600,-500.0,0.00041999,120]
[392703373,1761834730929,-255.98775972,0.00041999,120]
[392703374,1761834730997,-461.67526834,0.00041999,120]
[392703375,1761834731056,-250.0,0.00041999,120]
[392703376,1761834731110,-151.0,0.00041999,120]
[392703377,1761834731164,-500.0,0.00041999,120]
[392703378,1761834731217,-478.75725327,0.00041999,120]
[392703379,1761834731269,-250.0,0.00041999,120]
[392703380,1761834731321,-500.0,0.00041999,120]
[392703381,1761834731371,-250.0,0.00041999,120]
[392703382,1761834731421,-500.0,0.00041999,120]
[392703383,1761834731471,-496.47127164,0.00041999,120]
[392703384,1761834731520,-250.0,0.00041999,120]
[392703385,1761834731569,-600.0,0.00041999,120]
[392703386,1761834731618,-500.0,0.00041999,120]
[392703387,1761834731668,-514.84070869,0.00041999,120]
[392703388,1761834731717,-600.0,0.00041999,120]
[392703389,1761834731768,-250.0,0.00041999,120]
[392703390,1761834731819,-500.0,0.00041999,120]
[392703391,1761834731871,-533.88981491,0.00041999,120]
[392703392,1761834731922,-600.0,0.00041999,120]
[392703393,1761834731980,-250.0,0.00041999,120]
[392703394,1761834732031,-500.0,0.00041999,120]
[392703395,1761834732089,-500.0,0.00041999,120]
[392703396,1761834732140,-250.0,0.00041999,120]
[392703397,1761834732189,-600.0,0.00041999,120]
[392703398,1761834732238,-250.0,0.00041999,120]
[392703399,1761834732286,-500.0,0.00041999,120]
[392703400,1761834732338,-500.0,0.00041999,120]
[392703401,1761834732388,-600.0,0.00041999,120]
[392703402,1761834732435,-250.0,0.00041999,120]
[392703403,1761834732486,-250.0,0.00041999,120]
[392703404,1761834732532,-500.0,0.00041999,120]
[392703405,1761834732581,-500.0,0.00041999,120]
[392703406,1761834732632,-600.0,0.00041999,120]
[392703407,1761834732687,-250.0,0.00041999,120]
[392703408,1761834732739,-306.57558661,0.00041999,120]
[392703409,1761834732790,-500.0,0.00041999,120]
[392703410,1761834732845,-600.0,0.00041999,120]
[392703411,1761834732897,-500.0,0.00041999,120]
[392703412,1761834732950,-250.0,0.00041999,120]
[392703413,1761834733000,-500.0,0.00041999,120]
[392703414,1761834733055,-300.0,0.00041999,120]
[392703415,1761834733107,-600.0,0.00041999,120]
[392703416,1761834733156,-500.0,0.00041999,120]
[392703417,1761834733207,-250.0,0.00041999,120]
[392703418,1761834733259,-500.0,0.00041999,120]
[392703419,1761834733310,-311.1,0.00041999,120]
[392703420,1761834733364,-500.0,0.00041999,120]
[392703421,1761834733415,-600.0,0.00041999,120]
[392703422,1761834733465,-250.0,0.00041999,120]
[392703423,1761834733518,-500.0,0.00041999,120]
[392703424,1761834733574,-600.0,0.00041999,120]
[392703425,1761834733625,-500.0,0.00041999,120]
[392703426,1761834733675,-250.0,0.00041999,120]
[392703427,1761834733725,-500.0,0.00041999,120]
[392703428,1761834733774,-600.0,0.00041999,120]
[392703429,1761834733824,-250.0,0.00041999,120]
[392703430,1761834733875,-500.0,0.00041999,120]
[392703431,1761834733932,-500.0,0.00041999,120]
[392703432,1761834733987,-600.0,0.00041999,120]
[392703433,1761834734047,-500.0,0.00041999,120]
[392703434,1761834734098,-518.5,0.00041999,120]
[392703435,1761834734152,-500.0,0.00041999,120]
[392703436,1761834734212,-537.6845,0.00041999,120]
[392703437,1761834734265,-600.0,0.00041999,120]
[392703438,1761834734324,-500.0,0.00041999,120]
[392703439,1761834734375,-565.54744351,0.00041999,120]
[392703440,1761834734428,-500.0,0.00041999,120]
[392703441,1761834734477,-677.41749507,0.00041999,120]
[392703442,1761834734531,-500.0,0.00041999,120]
[392703443,1761834734580,-500.0,0.00041999,120]
[392703444,1761834734631,-500.0,0.00041999,120]
[392703445,1761834734682,-500.0,0.00041999,120]
[392703446,1761834734732,-500.0,0.00041999,120]
[392703447,1761834734782,-151.0,0.00041999,120]
[392703448,1761834734838,-500.0,0.00041999,120]
[392703449,1761834734888,-151.0,0.00041999,120]
[392703450,1761834734943,-500.0,0.00041999,120]
[392703451,1761834734994,-151.0,0.00041999,120]
[392703452,1761834735050,-220.0,0.00041999,120]
[392703453,1761834735100,-500.0,0.00041999,120]
[392703454,1761834735148,-151.0,0.00041999,120]
[392703455,1761834735202,-220.0,0.00041999,120]
[392703456,1761834735253,-156.587,0.00041999,120]
[392703457,1761834735301,-500.0,0.00041999,120]
[392703458,1761834735347,-151.0,0.00041999,120]
[392703459,1761834735394,-221.19124157,0.00041999,120]
[392703460,1761834735437,-250.0,0.00041999,120]
[392703461,1761834735487,-162.380719,0.00041999,120]
[392703462,1761834735535,-151.0,0.00041999,120]
[392703463,1761834735585,-250.0,0.00041999,120]
[392703464,1761834735642,-168.3888056,0.00041999,120]
[392703465,1761834735701,-617.64328901,0.00041999,120]
[392703466,1761834735766,-151.0,0.00041999,120]
[392703467,1761834735819,-250.0,0.00041999,120]
[392703468,1761834735869,-174.61919141,0.00041999,120]
[392703469,1761834735920,-151.0,0.00041999,120]
[392703470,1761834735973,-250.0,0.00041999,120]
[392703471,1761834736023,-181.08010149,0.00041999,120]
[392703472,1761834736072,-151.0,0.00041999,120]
[392703473,1761834736121,-250.0,0.00041999,120]
[392703474,1761834736172,-187.78006525,0.00041999,120]
[392703475,1761834736222,-200.0,0.00041999,30]
[392703476,1761834736273,-250.0,0.00041999,120]
[392703477,1761834736524,-207.4,0.00041999,30]
[392703478,1761834736573,-194.72792766,0.00041999,120]
[392703479,1761834736626,-250.0,0.00041999,120]
[392703480,1761834736678,-215.0738,0.00041999,30]
[392703481,1761834736731,-250.0,0.00041999,120]
[392703482,1761834736781,-223.0315306,0.00041999,30]
[392703483,1761834736833,-151.0,0.00041999,120]
[392703484,1761834736883,-231.28369723,0.00041999,30]
[392703485,1761834736937,-250.0,0.00041999,120]
[392703486,1761834736989,-156.587,0.00041999,120]
[392703487,1761834737041,-250.0,0.00041999,120]
[392703488,1761834737095,-239.84119403,0.00041999,30]
[392703489,1761834737145,-248.71531821,0.00041999,30]
[392703490,1761834737193,-162.380719,0.00041999,120]
[392703491,1761834737247,-250.0,0.00041999,120]
[392703492,1761834737305,-257.91778498,0.00041999,30]
[392703493,1761834737361,-168.3888056,0.00041999,120]
[392703494,1761834737415,-250.0,0.00041999,120]
[392703495,1761834737465,-174.61919141,0.00041999,120]
[392703496,1761834737515,-250.0,0.00041999,120]
[392703497,1761834737565,-181.08010149,0.00041999,120]
[392703498,1761834737616,-250.0,0.00041999,120]
[392703499,1761834737664,-187.78006525,0.00041999,120]
[392703500,1761834737714,-250.0,0.00041999,120]
[392703501,1761834737766,-194.72792766,0.00041999,120]
[392703502,1761834737813,-151.0,0.00041999,120]
[392703503,1761834737861,-250.0,0.00041999,120]
[392703504,1761834737909,-151.0,0.00041999,120]
[392703505,1761834737966,-151.0,0.00041999,120]
[392703506,1761834738015,-250.0,0.00041999,120]
[392703507,1761834738064,-151.0,0.00041999,120]
[392703508,1761834738112,-250.0,0.00041999,120]
[392703509,1761834738159,-151.0,0.00041999,120]
[392703510,1761834738207,-151.0,0.00041999,120]
[392703511,1761834738253,-151.0,0.00041999,120]
[392703512,1761834738305,-250.0,0.00041999,120]
[392703513,1761834738362,-151.0,0.00041999,120]
[392703514,1761834738413,-250.0,0.00041999,120]
[392703515,1761834738467,-250.0,0.00041999,120]
[392703516,1761834738515,-250.0,0.00041999,120]
[392703517,1761834738562,-250.0,0.00041999,120]
[392703518,1761834738610,-250.0,0.00041999,120]
[392703519,1761834738656,-250.0,0.00041999,120]
[392703520,1761834738702,-250.0,0.00041999,120]
[392703521,1761834738748,-151.0,0.00041999,120]
[392703522,1761834738805,-156.587,0.00041999,120]
[392703523,1761834738853,-162.380719,0.00041999,120]
[392703524,1761834738906,-168.3888056,0.00041999,120]
[392703525,1761834738956,-174.61919141,0.00041999,120]
[392703526,1761834739007,-181.08010149,0.00041999,120]
[392703527,1761834739058,-187.78006525,0.00041999,120]
[392703528,1761834739109,-194.72792766,0.00041999,120]
[392703529,1761834739159,-44161.53097882,0.00042,120]
[392703530,1761834739210,-150.0,0.00042,120]
[392703531,1761834739265,-19224.51,0.00042,120]
[392703532,1761834739314,-253.33342185,0.00042,120]
[392703533,1761834739371,-5160.67411709,0.00042,120]
[392703534,1761834739419,-100214.68737011,0.00042,120]
[392703535,1761834739468,-223.92,0.00042,30]
[392703536,1761834739517,-15000.0,0.00042,120]
[392703537,1761834739564,-2072.17,0.00042,60]
[392703538,1761834739609,-152.0,0.00042,30]
[392703539,1761834739661,-152.91303342,0.00042,30]
[392703540,1761834739711,-1454.29859542,0.00042,30]
[392703541,1761834739760,-500.0,0.00042,60]
[392703542,1761834739813,-476.34,0.00042062,120]
[392703543,1761834739861,-1000.0,0.00042082,60]
[392703544,1761834739909,-15000.0,0.000421,120]
[392703545,1761834739958,-684.26032741,0.0004213,120]
[392703546,1761834740010,-15000.0,0.000422,120]
[392703547,1761834740062,-2000.0,0.00042274,60]
[392703548,1761834740110,-623.89,0.000423,120]
[392703549,1761834740158,-477.01541854,0.000424,120]
[392703550,1761834740206,-477.13749083,0.000424,30]
[392703551,1761834740253,-1016.10914525,0.000425,120]
[392703552,1761834740299,-1678.2864068,0.000425,60]
[392703553,1761834740348,-160.48887793,0.000425,90]
[392703554,1761834740394,-150.0,0.000425,120]
[392703555,1761834740440,-30000.0,0.000425,120]
[392703556,1761834740483,-209.0622819,0.00042573,120]
[392703557,1761834740528,-2085.18737306,0.00042745,120]
[392703558,1761834740571,-14582.71545089,0.000428,30]
[392703559,1761834740619,-1000.0,0.00042822,60]
[392703560,1761834740673,-1000.0,0.0004288,120]
[392703561,1761834740721,-2000.0,0.000429,120]
[392703562,1761834740767,-178.18652628,0.00043,120]
[392703563,1761834740814,-150.0,0.00043,120]
[392703564,1761834740862,-593.47167739,0.00043,120]
[392703565,1761834740908,-2149.29,0.00043,30]
[392703566,1761834740956,-20000.0,0.00043,120]
[392703567,1761834741003,-150.0,0.00043,120]
[392703568,1761834741049,-340528.45562956,0.00043,120]
[392703569,1761834741095,-992.90675672,0.00043,120]
[392703570,1761834741142,-4773.10707517,0.00043,120]
[392703571,1761834741187,-335.0,0.00043,120]
[392703572,1761834741231,-35900.0,0.00043,120]
[392703573,1761834741278,-798.76,0.00043,30]
[392703574,1761834741325,-203.75,0.00043014,120]
[392703575,1761834741372,-500.0,0.00043096,60]
[392703576,1761834741418,-4023.11668491,0.000431,120]
[392703577,1761834741466,-2337.59657728,0.000431,120]
[392703578,1761834741514,-534.48364019,0.0004314,120]
[392703579,1761834741560,-32864.5140918,0.000432,120]
[392703580,1761834741798,-1869.0299954,0.0004328,120]
[392703581,1761834741851,-2000.0,0.0004337,60]
[392703582,1761834741904,-320.87199808,0.000435,120]
[392703583,1761834741958,-150.0,0.000435,120]
[392703584,1761834742010,-1444.0,0.00043562,120]
[392703585,1761834742059,-874.32572241,0.000437,120]
[392703586,1761834742105,-1000.0,0.00043726,90]
[392703587,1761834742152,-249.53046842,0.000438,30]
[392703588,1761834742203,-229.7671074,0.000438,120]
[392703589,1761834742251,-516.27,0.000438,120]
[392703590,1761834742299,-500.0,0.00043835,120]
[392703591,1761834742349,-500.0,0.00043835,120]
[392703592,1761834742396,-500.0,0.00043835,120]
[392703593,1761834742442,-500.0,0.00043835,120]
[392703594,1761834742490,-500.0,0.00043835,120]
[392703595,1761834742538,-500.0,0.00043835,120]
[392703596,1761834742584,-500.0,0.00043835,120]
[392703597,1761834742631,-500.0,0.00043835,120]
[392703598,1761834742678,-500.0,0.00043835,120]
[392703599,1761834742726,-500.0,0.00043835,120]
[392703600,1761834742777,-500.0,0.00043835,120]
[392703601,1761834742827,-500.0,0.00043835,120]
[392703602,1761834742877,-500.0,0.00043835,120]
[392703603,1761834742928,-500.0,0.00043835,120]
[392703604,1761834742982,-500.0,0.00043835,120]
[392703605,1761834743037,-500.0,0.00043835,120]
[392703606,1761834743088,-500.0,0.00043835,120]
[392703607,1761834743144,-500.0,0.00043835,120]
[392703608,1761834743196,-500.0,0.00043835,120]
[392703609,1761834743251,-500.0,0.00043835,120]
[392703610,1761834743307,-504.47404404,0.00043835,120]
[392703611,1761834743360,-500.0,0.00043836,120]
[392703612,1761834743416,-500.0,0.00043836,120]
[392703613,1761834743477,-500.0,0.00043836,120]
[392703614,1761834743539,-500.0,0.00043836,120]
[392703615,1761834743597,-500.0,0.00043836,120]
[392703616,1761834743653,-500.0,0.00043836,120]
[392703617,1761834743708,-500.0,0.00043836,120]
[392703618,1761834743762,-500.0,0.00043836,120]
[392703619,1761834743816,-500.0,0.00043836,120]
[392703620,1761834743869,-500.0,0.00043836,120]
[392703621,1761834743924,-500.0,0.00043836,120]
[392703622,1761834743977,-500.0,0.00043836,120]
[392703623,1761834744040,-500.0,0.00043836,120]
[392703624,1761834744097,-500.0,0.00043836,120]
[392703625,1761834744151,-500.0,0.00043836,120]
[392703626,1761834744210,-500.0,0.00043836,120]
[392703627,1761834744266,-500.0,0.00043836,120]
[392703628,1761834744321,-500.0,0.00043836,120]
[392703629,1761834744376,-500.0,0.00043836,120]
[392703630,1761834744427,-500.0,0.00043836,120]
[392703631,1761834744477,-838.96069604,0.00043836,120]
[392703632,1761834744525,-1000.0,0.0004388,120]
[392703633,1761834744574,-1000.0,0.00043918,60]
[392703634,1761834744623,-1085.65348026,0.00043987,120]
[392703635,1761834744682,-1612.5540065,0.00043999,120]
[392703636,1761834744736,-830.0,0.00044,30]
[392703637,1761834744790,-600.0,0.00044,120]
[392703638,1761834744848,-642.95136322,0.00044,120]
[392703639,1761834744904,-939.52166205,0.00044,120]
[392703640,1761834744963,-1000.0,0.00044,120]
[392703641,1761834745017,-200.0,0.00044,120]
[392703642,1761834745071,-150.0,0.00044,120]
[392703643,1761834745126,-12000.0,0.00044,120]
[392703644,1761834745184,-1608.47,0.00044,120]
[392703645,1761834745242,-4070.00269107,0.00044,120]
[392703646,1761834745300,-151.0,0.00044,120]
[392703647,1761834745369,-158.0,0.00044,120]
[392703648,1761834745424,-545.824406,0.00044,57]
[392703649,1761834745477,-210.66,0.00044,30]
[392703650,1761834745535,-500.0,0.00044192,60]
[392703651,1761834745585,-4000.0,0.00044321,31]
[392703652,1761834745638,-2337.59657728,0.000444,120]
[392703653,1761834745688,-1271.32028111,0.00044444,120]
[392703654,1761834745738,-652.89664935,0.00044444,120]
[392703655,1761834745792,-2000.0,0.00044466,60]
[392703656,1761834745854,-1520.66062205,0.000445,120]
[392703657,1761834745917,-150.0,0.000445,120]
[392703658,1761834745966,-10268.90836991,0.000445,120]
[392703659,1761834746017,-5000.0,0.000445,120]
[392703660,1761834746069,-8195.46313953,0.000445,120]
[392703661,1761834746118,-168.81,0.00044507,30]
[392703662,1761834746167,-548.57,0.00044507,30]
[392703663,1761834746218,-168.81,0.00044507,30]
[392703664,1761834746269,-414.14,0.00044507,30]
[392703665,1761834746325,-168.77,0.00044511,30]
[392703666,1761834746380,-1203.25,0.00044511,30]
[392703667,1761834746432,-337.54,0.00044511,30]
[392703668,1761834746483,-304.58,0.00044511,30]
[392703669,1761834746534,-415629.50545958,0.00044676,120]
[392703670,1761834746583,-50423.39299128,0.00044788,120]
[392703671,1761834746633,-10092.17908504,0.000448,120]
[392703672,1761834746685,-3037920.24839712,0.000448,120]
[392703673,1761834746740,-2743.0,0.0004488,120]
[392703674,1761834746792,-394.53787048,0.0004489,120]
[392703675,1761834746845,-1858.23,0.00044891,30]
[392703676,1761834746903,-391.61708138,0.000449,30]
[392703677,1761834746960,-400.00885813,0.000449,60]
[392703678,1761834747011,-261.29671263,0.000449,120]
[392703679,1761834747063,-1838.49391923,0.000449,120]
[392703680,1761834747117,-508644.29236524,0.00045,120]
[392703683,1761834758347,-151.0,0.00029999,31]
[392703684,1761834758402,-151.0,0.00029999,31]
[392703685,1761834758456,-151.0,0.00029999,31]
[392703686,1761834758508,-151.0,0.00029999,31]
[392703687,1761834758560,-151.0,0.00029999,31]
[392703688,1761834758613,-151.0,0.00029999,31]
[392703689,1761834758667,-151.0,0.00029999,31]
[392703690,1761834758736,-151.0,0.0003178,31]
[392703691,1761834758795,-151.0,0.0003178,31]
[392703692,1761834758847,-151.0,0.0003178,31]
[392703693,1761834758901,-151.0,0.0003178,31]
[392703694,1761834758954,-151.0,0.0003178,31]
[392703695,1761834759007,-161.660874,0.00031884,31]
[392703696,1761834759549,-151.0,0.00037075,31]
[392703697,1761834759601,-151.0,0.00037075,31]
[392703698,1761834759654,-151.0,0.00037075,31]
[392703699,1761834759705,-151.0,0.00037075,31]
[392703700,1761834759755,-151.0,0.00037075,31]
[392703701,1761834759801,-151.0,0.00037075,31]
[392703702,1761834759855,-151.0,0.00037075,31]
[392703703,1761834759905,-284.979769,0.00037075,31]
[392703704,1761834759955,-155.035633,0.00037075,31]
[392703705,1761834760012,-153.47859023,0.0004,60]
[392703706,1761834760063,-300.0,0.00041609,107]
[392703707,1761834760115,-151.0,0.00041999,120]
[392703708,1761834760166,-156.587,0.00041999,120]
[392703709,1761834760217,-162.380719,0.00041999,120]
[392703710,1761834760274,-168.3888056,0.00041999,120]
[392703711,1761834760326,-174.61919141,0.00041999,120]
[392703712,1761834760379,-181.08010149,0.00041999,120]
[392703713,1761834760432,-187.78006525,0.00041999,120]
[392703714,1761834760486,-194.72792766,0.00041999,120]
[392703715,1761834760536,-201.93286099,0.00041999,120]
[392703716,1761834760589,-209.40437684,0.00041999,120]
[392703717,1761834760638,-217.15233878,0.00041999,120]
[392703718,1761834760687,-225.18697532,0.00041999,120]
[392703719,1761834760735,-233.51889341,0.00041999,120]
[392703720,1761834760787,-242.15909246,0.00041999,120]
[392703721,1761834760836,-267.99668963,0.00041999,120]
[392703722,1761834760890,-863.0,0.00044822,120]
[392703723,1761834761249,-491354.70763476,0.00045,120]
[392703724,1761834761298,-156.6,0.00045,85]
[392703725,1761834761353,-500000.0,0.00045,120]
[392703726,1761834761401,-566.96937565,0.00045,120]
[392703727,1761834761451,-324.34710962,0.00045,120]
[392703728,1761834761500,-1513.16832649,0.00045,120]
[392703729,1761834761548,-569.8304223,0.00045,30]
[392703730,1761834761600,-1000000.0,0.00045,120]
[392703731,1761834761652,-1000000.0,0.00045,120]
[392703732,1761834761704,-1000000.0,0.00045,120]
[392703733,1761834761754,-997753.30722711,0.00045,120]
[392703734,1761834766349,-267.7,0.00030212,30]
[392703735,1761834766903,-2246.69277289,0.00045,120]
[392703736,1761834766957,-1000000.0,0.00045,120]
[392703737,1761834767013,-1000000.0,0.00045,120]
[392703738,1761834767067,-1000000.0,0.00045,120]
[392703739,1761834767120,-1000000.0,0.00045,120]
[392703740,1761834767170,-997485.60722711,0.00045,120]
[392703742,1761834771856,-2514.39277289,0.00045,120]
[392703743,1761834771914,-1000000.0,0.00045,120]
[392703744,1761834771970,-1000000.0,0.00045,120]
[392703745,1761834772020,-1000000.0,0.00045,120]
[392703746,1761834772070,-1000000.0,0.00045,120]
[392703747,1761834772123,-997485.60722711,0.00045,120]
[392703748,1761834778310,-799.5,0.00030212,30]
[392703749,1761834778905,-168.81,0.00044489,30]
[392703750,1761834778969,-2514.39277289,0.00045,120]
[392703751,1761834779021,-1000000.0,0.00045,120]
[392703752,1761834779073,-1000000.0,0.00045,120]
[392703753,1761834779126,-1000000.0,0.00045,120]
[392703754,1761834779178,-1000000.0,0.00045,120]
[392703755,1761834779227,-1000000.0,0.00045,120]
[392703756,1761834779275,-1000000.0,0.00045,120]
[392703757,1761834779322,-1000000.0,0.00045,120]
[392703758,1761834779369,-11000.0,0.00045,60]
[392703759,1761834779420,-148974.13254428,0.00045,120]
[392703760,1761834779468,-750.0,0.00045,30]
[392703761,1761834779515,-500000.0,0.00045,120]
[392703762,1761834779566,-500000.0,0.00045,120]
[392703763,1761834779613,-1048.226735,0.00045,120]
[392703764,1761834779660,-153.8015121,0.00045,120]
[392703765,1761834779704,-500.0,0.00045,120]
[392703766,1761834779752,-705784.10004241,0.00045,120]
[392703767,1761834779799,-500000.0,0.00045,120]
[392703768,1761834779847,-500000.0,0.00045,120]
[392703769,1761834779898,-500000.0,0.00045,120]
[392703770,1761834779947,-500000.0,0.00045,120]
[392703771,1761834779996,-500000.0,0.00045,120]
[392703772,1761834780061,-500000.0,0.00045,120]
[392703773,1761834780130,-6210.0,0.00045,120]
[392703774,1761834780184,-150.0,0.00045,120]
[392703775,1761834780241,-261.92823668,0.00045,120]
[392703776,1761834780297,-1000000.0,0.00045,120]
[392703777,1761834780666,-500000.0,0.00045,120]
[392703778,1761834780732,-500000.0,0.00045,120]
[392703779,1761834780787,-4783.0,0.00045,120]
[392703780,1761834780841,-1224.07557156,0.00045,120]
[392703781,1761834780896,-922.29181,0.00045,120]
[392703782,1761834780954,-1000000.0,0.00045,120]
[392703783,1761834781015,-114755.74077508,0.00045,120]
[392703784,1761834785535,-885244.25922492,0.00045,120]
[392703785,1761834785589,-1000000.0,0.00045,120]
[392703786,1761834785642,-304406.0,0.00045,120]
[392703787,1761834785695,-500000.0,0.00045,120]
[392703788,1761834785747,-767628.0,0.00045,120]
[392703789,1761834785799,-15134.52411345,0.00045,120]
[392703790,1761834785850,-342.69504914,0.00045,120]
[392703791,1761834785903,-150.0,0.00045,120]
[392703792,1761834785956,-150.0,0.00045,120]
[392703793,1761834786011,-367.0,0.00045,120]
[392703794,1761834786061,-420.0,0.00045,120]
[392703795,1761834786111,-300.0,0.00045,120]
[392703796,1761834786160,-150.0,0.00045,120]
[392703797,1761834786199,-150.0,0.00045,120]
[392703798,1761834786241,-150.0,0.00045,120]
[392703799,1761834786278,-1029.36,0.00045,120]
[392703800,1761834786314,-600000.0,0.00045,120]
[392703801,1761834786352,-400000.0,0.00045,120]
[392703802,1761834786387,-150.0,0.00045,120]
[392703803,1761834786425,-1519.23599198,0.00045,120]
[392703804,1761834786462,-1160.2305184,0.00045,120]
[392703805,1761834786496,-152.131,0.00045,30]
[392703806,1761834786533,-1000.0,0.00045014,60]
[392703807,1761834786574,-500000.0,0.00045025,120]
[392703808,1761834786616,-20396.56410211,0.0004505,120]
[392703810,1761834798228,-201.89059053,0.0002653,30]
[392703811,1761834798793,-1402.55794636,0.000372,120]
[392703812,1761834798832,-1402.55794636,0.000383,120]
[392703813,1761834798883,-1402.55794636,0.000395,120]
[392703814,1761834798919,-1402.55794636,0.000406,120]
[392703815,1761834798956,-1402.55794636,0.000419,120]
[392703816,1761834798998,-1000000.0,0.00045,120]
[392703817,1761834799035,-479603.43589789,0.0004505,120]
[392703818,1761834799073,-500000.0,0.000451,120]
[392703819,1761834799110,-500000.0,0.00045125,120]
[392703820,1761834799149,-500000.0,0.0004515,120]
[392703821,1761834799184,-500000.0,0.00045175,120]
[392703822,1761834799219,-500000.0,0.000452,120]
[392703823,1761834799257,-999.0,0.00045205,120]
[392703824,1761834799292,-500000.0,0.00045225,120]
[392703825,1761834799338,-500.0,0.00045288,60]
[392703826,1761834799377,-151.0,0.000453,120]
[392703827,1761834799412,-5233.23,0.00045345,120]
[392703828,1761834799445,-1000.41438607,0.000455,120]
[392703829,1761834799484,-505298.23939371,0.000455,120]
[392703830,1761834804534,-1000000.0,0.00045,120]
[392703831,1761834804573,-1000000.0,0.00045,120]
[392703832,1761834804612,-494701.76060629,0.000455,120]
[392703833,1761834804652,-1000000.0,0.000455,120]
[392703834,1761834804690,-150.0,0.000455,120]
[392703835,1761834804726,-2000.0,0.00045562,60]
[392703836,1761834804764,-313.0228268,0.000457,120]
[392703837,1761834804800,-4088.62,0.00045703,30]
[392703838,1761834804835,-158.0,0.000458,120]
[392703839,1761834804869,-209.40090198,0.000459,30]
[392703840,1761834804910,-197.09101314,0.00046,120]
[392703841,1761834804952,-227.0217031,0.00046,120]
[392703842,1761834804995,-1000.0,0.00046,30]
[392703843,1761834805034,-204.13165376,0.00046,30]
[392703844,1761834805074,-892.4740094,0.00046,30]
[392703845,1761834805112,-1000000.0,0.00046,120]
[392703846,1761834805149,-495858.47728553,0.00046,120]
[392703847,1761834810598,-1949.73,0.00044,30]
[392703848,1761834810648,-1000000.0,0.00045,120]
[392703849,1761834810696,-504141.52271447,0.00046,120]
[392703850,1761834810742,-1000000.0,0.00046,120]
[392703851,1761834810787,-1000000.0,0.00046,120]
[392703852,1761834810832,-733000.0,0.00046,120]
[392703853,1761834810877,-501.98,0.00046,120]